fUST/lending_fUST_20240811
["ID","MTS","AMOUNT","RATE_DAILY","PERIOD"]
[334612292,1723345846320,867.29420239,0.00014545,2]
[334612293,1723345860696,667.55022197,0.00014545,2]
[334612294,1723345864535,204.29765553,0.00014545,2]
[334612295,1723345942270,279.01,0.00010959,2]
[334612296,1723345952787,232.51,0.00010959,2]
[334612297,1723345963538,193.76,0.00010959,2]
[334612298,1723345974254,193.76,0.00010959,2]
[334612299,1723345979502,273.37336231,9.9e-05,2]
[334612300,1723345985038,775.06,0.00010959,2]
[334612301,1723345985538,260.18122375,0.00013283,2]
[334612302,1723345997469,851.83164828,0.00013283,2]
[334612303,1723345997700,267.61489003,0.00013283,2]
[334612304,1723345997889,242.95788117,0.00013283,2]
[334612306,1723346003675,155.25804822,0.00014,2]
[334612307,1723346005603,959.45560378,0.00013283,2]
[334612308,1723346009686,495.77797842,0.00013283,2]
[334612310,1723346025954,405.08523322,0.00010959,2]
[334612311,1723346026337,190.18906434,0.00013283,2]
[334612312,1723346034643,3605.17880046,0.00013283,2]
[334612313,1723346039588,9114.71769999,0.00013283,2]
[334612314,1723346046455,278.61391398,0.00013283,2]
[334612323,1723346105038,405.13302153,0.00013283,2]
[334612324,1723346141860,2010.2486635,0.00015641,2]
[334612326,1723346154647,1312.27720183,0.00013283,2]
[334612327,1723346155030,218.54383377,0.00013283,2]
[334612328,1723346165909,1071.339828,0.00015492,2]
[334612329,1723346178261,2110.71605462,0.00013283,2]
[334612330,1723346190122,7948.96616174,0.00013283,2]
[334612331,1723346206247,5225.6597336,0.000152,2]
[334612332,1723346226689,157.85964427,0.00015954,2]
[334612333,1723346227420,849.67582147,0.00015954,2]
[334612335,1723346233124,495.6924648,0.00015954,2]
[334612336,1723346233217,240.63869447,0.00015954,2]
[334612337,1723346261914,1768.01961959,0.00015954,2]
[334612338,1723346275109,273.37336231,9.9e-05,2]
[334612339,1723346287214,176.53388088,0.00015954,2]
[334612340,1723346290884,273.37336231,9.9e-05,2]
[334612341,1723346300594,320.6211242,0.00015954,2]
[334612342,1723346317450,163.4450484,0.00014247,2]
[334612343,1723346336517,208.1929326,0.000151,2]
[334612347,1723346401705,20572.27981238,0.00015953,2]
[334612350,1723346485260,47066.6798037,0.00014984,2]
[334612351,1723346538370,242.45617359,0.00014984,2]
[334612353,1723346563754,3000.0,0.00014925,2]
[334612354,1723346565923,414.9624165,0.00014925,2]
[334612355,1723346572537,668.5887496,0.00014925,2]
[334612356,1723346594701,180.794858,0.00014765,2]
[334612357,1723346594920,180.794858,0.00014806,2]
[334612358,1723346595139,180.794858,0.00014846,2]
[334612359,1723346595537,180.794858,0.00014887,2]
[334612360,1723346595736,180.794858,0.00014927,2]
[334612361,1723346596161,180.794858,0.00014968,2]
[334612362,1723346596372,180.794858,0.00015008,2]
[334612363,1723346597367,189.3756299,0.00014656,2]
[334612364,1723346644111,239.24950939,9.9e-05,2]
[334612365,1723346645600,339.9783498,0.00014307,2]
[334612366,1723346658449,3623.432376,0.00014307,2]
[334612367,1723346674362,851.56013,0.00014307,2]
[334612368,1723346687910,1646.19147784,0.00014949,2]
[334612369,1723346699368,4711.14602353,0.00014307,2]
[334612370,1723346708901,301.97335684,0.00014307,2]
[334612371,1723346710559,1630.23174338,0.00014307,2]
[334612372,1723346713349,313.69927229,0.00014307,2]
[334612373,1723346714009,404.69022762,0.00014307,2]
[334612374,1723346723962,167.16737541,0.00014307,2]
[334612375,1723346728346,1228.58244643,0.00014307,2]
[334612376,1723346730820,185.57943535,0.00014307,2]
[334612377,1723346735100,12229.35103531,0.00014307,2]
[334612378,1723346737648,155.15848377,0.00014307,2]
[334612379,1723346742102,217.86716505,0.00014307,2]
[334612380,1723346744143,258.2522738,0.00014447,2]
[334612382,1723346771256,164.819526,0.00014247,2]
[334612383,1723346785098,213.76685902,0.00014307,2]
[334612384,1723346819245,2516.71039,0.00014305,2]
[334612385,1723346825137,-300.0,0.00015043,2]
[334612386,1723346825160,-561.39964761,0.00015044,2]
[334612387,1723346838144,-941.48420841,0.00015044,2]
[334612391,1723346881228,631.65973981,0.00014999,2]
[334612394,1723346907884,543.53411254,9.999e-05,2]
[334612395,1723346918433,32092.70834774,0.0001469,2]
[334612396,1723346918473,1440.41754311,0.00014949,2]
[334612397,1723346923311,29406.28632525,0.00014,2]
[334612398,1723346924031,273.37336231,9.9e-05,2]
[334612401,1723346931407,189.86108484,9.999e-05,2]
[334612402,1723346935484,626.9146159,0.00014174,2]
[334612404,1723346939720,273.37336231,9.9e-05,2]
[334612405,1723346945199,-300.0,0.00015043,2]
[334612406,1723346945226,-912.60929894,0.00015044,2]
[334612407,1723346945272,-154.77557542,0.00015044,2]
[334612408,1723346945319,-32064.00812038,0.00015044,2]
[334612409,1723346945370,-180.794858,0.00015049,2]
[334612410,1723346945417,-24900.0,0.00015065,2]
[334612411,1723346945442,-180.794858,0.00015089,2]
[334612412,1723346945466,-180.794858,0.0001513,2]
[334612413,1723346945490,-180.794858,0.0001517,2]
[334612414,1723346945513,-180.794858,0.00015211,2]
[334612415,1723346945536,-180.794858,0.00015251,2]
[334612416,1723346945559,-180.794858,0.00015292,2]
[334612417,1723346945589,-180.794858,0.00015332,2]
[334612418,1723346945611,-180.794858,0.00015373,2]
[334612419,1723346945636,-180.794858,0.00015413,2]
[334612420,1723346945663,-180.794858,0.00015454,2]
[334612421,1723346945686,-180.794858,0.00015494,2]
[334612422,1723346945708,-180.794858,0.00015535,2]
[334612423,1723346945730,-2354.95500501,0.00015608,2]
[334612424,1723346945752,-500.0,0.00015697,2]
[334612425,1723346945773,-237.15276904,0.00015697,2]
[334612426,1723346945794,-242.57343349,0.00015697,2]
[334612427,1723346945815,-403.56319154,0.00015697,2]
[334612428,1723346945838,-203.12621248,0.00015697,2]
[334612429,1723346945860,-500.0,0.00015697,2]
[334612430,1723346945882,-500.0,0.00015697,2]
[334612431,1723346945905,-500.0,0.00015697,2]
[334612432,1723346945927,-430.70376599,0.00015697,2]
[334612433,1723346945950,-500.0,0.00015697,2]
[334612434,1723346945972,-500.0,0.00015697,2]
[334612435,1723346945995,-500.0,0.00015697,2]
[334612436,1723346946018,-500.0,0.00015697,2]
[334612437,1723346946040,-500.0,0.00015697,2]
[334612438,1723346946062,-500.0,0.00015697,2]
[334612439,1723346946084,-500.0,0.00015697,2]
[334612440,1723346946107,-500.0,0.00015697,2]
[334612441,1723346946130,-500.0,0.00015697,2]
[334612442,1723346946152,-500.0,0.00015697,2]
[334612443,1723346946174,-500.0,0.00015697,2]
[334612444,1723346946197,-500.0,0.00015697,2]
[334612445,1723346946219,-500.0,0.00015697,2]
[334612446,1723346946243,-500.0,0.00015697,2]
[334612447,1723346946265,-164.55033868,0.00015697,2]
[334612448,1723346946288,-500.0,0.00015697,2]
[334612449,1723346946310,-438.42729377,0.00015697,2]
[334612450,1723346946335,-500.0,0.00015697,2]
[334612451,1723346946357,-500.0,0.00015697,2]
[334612452,1723346946392,-500.0,0.00015697,2]
[334612453,1723346946423,-500.0,0.00015697,2]
[334612454,1723346946449,-500.0,0.00015697,2]
[334612455,1723346946474,-550.0,0.00015697,2]
[334612456,1723346946500,-500.0,0.00015697,2]
[334612457,1723346946525,-500.0,0.00015697,2]
[334612458,1723346946549,-500.0,0.00015697,2]
[334612459,1723346946573,-500.0,0.00015697,2]
[334612460,1723346946596,-500.0,0.00015697,2]
[334612461,1723346946620,-500.0,0.00015697,2]
[334612462,1723346946644,-500.0,0.00015697,2]
[334612463,1723346946667,-500.0,0.00015697,2]
[334612464,1723346946691,-500.0,0.00015697,2]
[334612465,1723346946713,-500.0,0.00015697,2]
[334612466,1723346946737,-500.0,0.00015697,2]
[334612467,1723346946762,-500.0,0.00015697,2]
[334612468,1723346946789,-80960.9272544,0.00015698,2]
[334612469,1723346946811,-508.64168757,0.00015701,2]
[334612470,1723346946834,-554.02719462,0.00015701,2]
[334612471,1723346946857,-270.13986838,0.00015701,2]
[334612472,1723346946880,-554.02719462,0.00015701,2]
[334612473,1723346946903,-554.02719462,0.00015701,2]
[334612474,1723346946928,-554.02719462,0.00015701,2]
[334612475,1723346946954,-554.02719462,0.00015701,2]
[334612476,1723346946979,-554.02719462,0.00015701,2]
[334612477,1723346947003,-554.02719462,0.00015701,2]
[334612478,1723346947027,-554.02719462,0.00015701,2]
[334612479,1723346947052,-554.02719462,0.00015701,2]
[334612480,1723346947076,-560.95253455,0.00015701,2]
[334612481,1723346947100,-560.95253455,0.00015701,2]
[334612482,1723346947124,-560.95253455,0.00015701,2]
[334612483,1723346947148,-560.95253455,0.00015701,2]
[334612484,1723346947172,-560.95253455,0.00015701,2]
[334612485,1723346947196,-560.95253455,0.00015701,2]
[334612486,1723346947220,-560.95253455,0.00015701,2]
[334612487,1723346947244,-560.95253455,0.00015701,2]
[334612488,1723346947267,-560.95253455,0.00015701,2]
[334612489,1723346947291,-560.95253455,0.00015701,2]
[334612490,1723346947314,-80960.9272544,0.00015702,2]
[334612491,1723346947340,-1662.08748104,0.00015708,2]
[334612492,1723346947367,-7007.90701187,0.00015708,2]
[334612493,1723346947391,-160.7078056,0.00015708,2]
[334612494,1723346947416,-694.52815247,0.00015708,2]
[334612495,1723346947439,-569.05372197,0.00015708,2]
[334612496,1723346947461,-156.69756504,0.00015708,2]
[334612497,1723346947483,-216.57599158,0.00015708,2]
[334612498,1723346947505,-521.37928999,0.00015708,2]
[334612499,1723346947528,-569.05372197,0.00015708,2]
[334612500,1723346947551,-151.0,0.0001571,2]
[334612501,1723346947572,-269.07389461,0.0001571,2]
[334612502,1723346947596,-932.72964545,0.0001571,2]
[334612503,1723346947619,-846.23163308,0.0001571,2]
[334612504,1723346947640,-27771.4057584,0.0001571,2]
[334612505,1723346947662,-155.10859792,0.0001571,2]
[334612506,1723346947686,-27771.4057584,0.0001571,2]
[334612507,1723346947708,-155.03260635,0.0001571,2]
[334612508,1723346947730,-206.41986617,0.0001571,2]
[334612509,1723346947751,-250.83146237,0.0001571,2]
[334612510,1723346947774,-989.90003636,0.0001571,2]
[334612511,1723346947797,-151.0,0.00015711,2]
[334612512,1723346947819,-168.823114,0.00015711,2]
[334612513,1723346947842,-151.0,0.00015711,2]
[334612514,1723346947866,-151.0,0.00015711,2]
[334612515,1723346947891,-200.342939,0.00015711,2]
[334612516,1723346947921,-200.342939,0.00015711,2]
[334612517,1723346947943,-200.342939,0.00015711,2]
[334612518,1723346947965,-200.342939,0.00015711,2]
[334612519,1723346947990,-151.0,0.00015711,2]
[334612520,1723346948014,-151.0,0.00015712,2]
[334612521,1723346948038,-155.12417093,0.00015712,2]
[334612522,1723346948059,-309.52024671,0.00015712,2]
[334612523,1723346948082,-151.0,0.00015712,2]
[334612524,1723346948104,-151.0,0.00015712,2]
[334612525,1723346948125,-413.18177562,0.00015712,2]
[334612526,1723346948146,-952.621668,0.00015712,2]
[334612527,1723346948167,-200.342939,0.00015712,2]
[334612528,1723346948189,-200.342939,0.00015712,2]
[334612529,1723346948214,-200.342939,0.00015712,2]
[334612530,1723346948236,-200.342939,0.00015712,2]
[334612531,1723346948258,-278.05484819,0.00015712,2]
[334612532,1723346948279,-196.63865106,0.00015712,2]
[334612533,1723346948301,-151.0,0.00015744,2]
[334612534,1723346948324,-151.920141,0.00015744,2]
[334612535,1723346948364,-151.0,0.00015744,2]
[334612536,1723346948389,-151.0,0.00015744,2]
[334612537,1723346948413,-151.0,0.00015744,2]
[334612538,1723346948438,-155.586034,0.00015744,2]
[334612539,1723346948462,-151.0,0.00015744,2]
[334612540,1723346948487,-246.682853,0.00015744,2]
[334612541,1723346948511,-151.0,0.00015744,2]
[334612542,1723346948536,-151.0,0.00015744,2]
[334612543,1723346948560,-152.298296,0.00015744,2]
[334612544,1723346948582,-154.575148,0.00015744,2]
[334612545,1723346948604,-223.32245684,0.00015744,2]
[334612546,1723346948625,-196.63865106,0.00015744,2]
[334612547,1723346948646,-154.77557542,0.00015744,2]
[334612548,1723346948668,-319.99782942,0.00015744,2]
[334612549,1723346948690,-221.3275128,0.00015744,2]
[334612550,1723346948714,-151.0,0.00015746,2]
[334612551,1723346948922,-151.0,0.00015746,2]
[334612552,1723346948946,-151.0,0.00015746,2]
[334612553,1723346948969,-151.0,0.00015746,2]
[334612554,1723346948993,-151.0,0.00015746,2]
[334612555,1723346949014,-398.37320417,0.00015746,2]
[334612556,1723346949035,-152.520745,0.00015751,2]
[334612557,1723346949056,-157.153137,0.00015751,2]
[334612558,1723346949079,-155.797894,0.00015751,2]
[334612559,1723346949101,-156.530369,0.00015751,2]
[334612560,1723346949123,-155.797894,0.00015751,2]
[334612561,1723346949145,-151.0,0.00015751,2]
[334612562,1723346949166,-151.0,0.00015751,2]
[334612563,1723346949190,-151.0,0.00015751,2]
[334612565,1723346949222,-200.342939,0.00015751,2]
[334612566,1723346949244,-200.342939,0.00015751,2]
[334612567,1723346949267,-155.797894,0.0001585,2]
[334612568,1723346949290,-155.797894,0.0001585,2]
[334612569,1723346949312,-155.797894,0.0001585,2]
[334612571,1723346949339,-155.797894,0.0001585,2]
[334612572,1723346949361,-189.102146,0.0001585,2]
[334612573,1723346949385,-151.0,0.0001585,2]
[334612574,1723346949407,-151.0,0.0001585,2]
[334612575,1723346949430,-151.0,0.0001585,2]
[334612576,1723346949452,-151.0,0.0001585,2]
[334612577,1723346949474,-151.0,0.0001585,2]
[334612578,1723346949496,-151.0,0.0001585,2]
[334612579,1723346949517,-151.0,0.0001585,2]
[334612580,1723346949543,-170.764505,0.0001585,2]
[334612581,1723346949566,-151.0,0.0001585,2]
[334612582,1723346949589,-151.0,0.0001585,2]
[334612583,1723346949614,-151.0,0.0001585,2]
[334612584,1723346949638,-151.0,0.0001585,2]
[334612585,1723346949661,-151.0,0.00015942,2]
[334612586,1723346949684,-151.0,0.00015942,2]
[334612587,1723346949710,-151.0,0.00015942,2]
[334612588,1723346949732,-200.342939,0.00015942,2]
[334612589,1723346949755,-200.342939,0.00015942,2]
[334612590,1723346949779,-201.571195,0.00015943,2]
[334612591,1723346949809,-201.571195,0.00015943,2]
[334612592,1723346949835,-155.797894,0.00015943,2]
[334612593,1723346949861,-155.797894,0.00015943,2]
[334612594,1723346949885,-151.0,0.00015943,2]
[334612595,1723346949909,-151.0,0.00015943,2]
[334612596,1723346949935,-151.0,0.00015943,2]
[334612597,1723346949958,-151.0,0.00015943,2]
[334612598,1723346949983,-151.0,0.00015943,2]
[334612599,1723346950006,-151.0,0.00015943,2]
[334612600,1723346950028,-206.966219,0.00015943,2]
[334612601,1723346950050,-200.342939,0.00015943,2]
[334612602,1723346950073,-200.342939,0.00015943,2]
[334612603,1723346950095,-201.571195,0.00015953,2]
[334612604,1723346950117,-201.571195,0.00015953,2]
[334612605,1723346950139,-153.535284,0.00015995,2]
[334612606,1723346950161,-151.0,0.00015995,2]
[334612607,1723346950183,-151.0,0.00015995,2]
[334612608,1723346950205,-2354.955005,0.00016023,2]
[334612609,1723346950226,-153.701613,0.00016038,2]
[334612610,1723346950247,-155.177024,0.00016038,2]
[334612611,1723346950268,-8836.92013464,0.0001611,2]
[334612612,1723346950290,-809.06263735,0.0001611,2]
[334612613,1723346950315,-151.0,0.00016159,2]
[334612614,1723346950341,-155.797894,0.00016159,2]
[334612615,1723346950366,-155.797894,0.00016159,2]
[334612616,1723346950390,-151.0,0.00016159,2]
[334612617,1723346950418,-80960.9272544,0.00016304,2]
[334612618,1723346950440,-309.35258956,0.00016309,2]
[334612619,1723346950462,-201.571195,0.00016314,2]
[334612620,1723346950489,-201.571195,0.00016314,2]
[334612621,1723346950515,-151.0,0.00016314,2]
[334612622,1723346950539,-151.0,0.00016314,2]
[334612623,1723346950564,-151.0,0.00016314,2]
[334612624,1723346950589,-228.390808,0.00016314,2]
[334612625,1723346950614,-151.0,0.00016314,2]
[334612626,1723346950637,-151.0,0.00016347,2]
[334612627,1723346950660,-155.144273,0.00016347,2]
[334612628,1723346950681,-200.342939,0.00016347,2]
[334612629,1723346950703,-200.342939,0.00016347,2]
[334612630,1723346950727,-195.20608919,0.00016347,2]
[334612631,1723346950750,-850.13586547,0.00016347,2]
[334612632,1723346950771,-1349.24584919,0.00016347,3]
[334612633,1723346950792,-154.79103211,0.00016347,2]
[334612634,1723346950815,-151.0,0.00016388,2]
[334612635,1723346950838,-2354.955005,0.00016437,2]
[334612636,1723346950871,-500.0,0.00016438,2]
[334612637,1723346950892,-500.0,0.00016438,2]
[334612638,1723346950919,-500.0,0.00016438,2]
[334612639,1723346950942,-500.0,0.00016438,2]
[334612640,1723346950964,-500.0,0.00016438,2]
[334612641,1723346950986,-500.0,0.00016438,2]
[334612642,1723346951007,-500.0,0.00016438,2]
[334612643,1723346951030,-258.06081848,0.00016438,2]
[334612644,1723346951054,-151.0,0.00016438,2]
[334612645,1723346951076,-151.0,0.00016438,2]
[334612646,1723346951098,-200.0,0.00016456,2]
[334612647,1723346951120,-181.30628376,0.00016532,2]
[334612648,1723346951142,-278.18442821,0.00016532,2]
[334612649,1723346951164,-420.0,0.00016547,2]
[334612650,1723346951185,-200.0,0.00016592,2]
[334612651,1723346951205,-200.0,0.00016592,2]
[334612652,1723346951228,-155.797894,0.00016633,2]
[334612653,1723346951251,-155.797894,0.00016633,2]
[334612654,1723346951274,-151.0,0.00016633,2]
[334612655,1723346951297,-2354.955005,0.00016852,2]
[334612656,1723346951323,-1440.41754309,0.00016942,2]
[334612657,1723346951366,-155.797894,0.00016951,2]
[334612658,1723346951389,-155.797894,0.00016951,2]
[334612659,1723346951416,-151.0,0.00016951,2]
[334612660,1723346951439,-151.0,0.00016951,2]
[334612661,1723346951460,-151.0,0.00016951,2]
[334612662,1723346951482,-151.0,0.00016951,2]
[334612663,1723346951504,-181.100706,0.00016951,2]
[334612664,1723346951527,-151.0,0.00016951,2]
[334612665,1723346951548,-151.0,0.00016951,2]
[334612666,1723346951569,-287.174011,0.00016951,2]
[334612667,1723346951592,-201.571195,0.00016952,2]
[334612668,1723346951616,-201.571195,0.00016952,2]
[334612669,1723346951638,-154.93965278,0.00017,2]
[334612670,1723346951659,-816.72532423,0.00017,3]
[334612671,1723346951680,-201.571195,0.00017006,2]
[334612672,1723346951702,-201.571195,0.00017006,2]
[334612673,1723346951724,-155.797894,0.00017006,2]
[334612674,1723346951745,-155.797894,0.00017006,2]
[334612675,1723346951767,-151.0,0.00017006,2]
[334612676,1723346951789,-151.0,0.00017006,2]
[334612677,1723346951810,-151.0,0.00017006,2]
[334612678,1723346951832,-200.342939,0.00017006,2]
[334612679,1723346951862,-200.342939,0.00017006,2]
[334612680,1723346951884,-274.841039,0.00017016,2]
[334612681,1723346951909,-201.571195,0.00017016,2]
[334612682,1723346951930,-201.571195,0.00017016,2]
[334612683,1723346951952,-201.571195,0.00017016,2]
[334612684,1723346951973,-201.571195,0.00017016,2]
[334612685,1723346951996,-151.0,0.00017017,2]
[334612686,1723346952019,-171.597351,0.00017017,2]
[334612687,1723346952041,-151.0,0.00017017,2]
[334612688,1723346952066,-151.0,0.00017017,2]
[334612689,1723346952088,-151.0,0.00017017,2]
[334612690,1723346952111,-151.0,0.00017017,2]
[334612691,1723346952132,-151.0,0.00017018,2]
[334612692,1723346952154,-151.0,0.00017018,2]
[334612693,1723346952176,-151.0,0.00017018,2]
[334612694,1723346952198,-151.0,0.00017018,2]
[334612695,1723346952220,-152.354022,0.00017018,2]
[334612696,1723346952243,-154.181858,0.00017018,2]
[334612697,1723346952266,-151.0,0.00017018,2]
[334612698,1723346952292,-151.0,0.00017018,2]
[334612699,1723346952316,-201.571195,0.00017018,2]
[334612700,1723346952345,-201.571195,0.00017018,2]
[334612701,1723346952379,-836.07044671,0.00017019,2]
[334612702,1723346952542,-182.18527632,0.00017019,2]
[334612703,1723346952574,-407.43680652,0.00017019,2]
[334612704,1723346952597,-155.797894,0.00017085,2]
[334612705,1723346952620,-155.797894,0.00017085,2]
[334612706,1723346952642,-153.922466,0.00017085,2]
[334612707,1723346952663,-151.0,0.00017085,2]
[334612708,1723346952684,-151.0,0.00017085,2]
[334612709,1723346952705,-2354.955005,0.00017266,2]
[334612710,1723346952728,-200.342939,0.00017271,2]
[334612711,1723346952749,-200.342942,0.00017271,2]
[334612712,1723346952772,-154.42721,0.00017279,2]
[334612713,1723346952793,-150.112233,0.000173,2]
[334612714,1723346952816,-192.598064,0.00017366,2]
[334612715,1723346952838,-151.0,0.00017366,2]
[334612716,1723346952865,-151.0,0.00017366,2]
[334612717,1723346952893,-151.0,0.00017366,2]
[334612718,1723346952916,-151.0,0.00017366,2]
[334612719,1723346952940,-201.571195,0.00017366,2]
[334612720,1723346952963,-201.571195,0.00017366,2]
[334612721,1723346952988,-201.571195,0.00017366,2]
[334612722,1723346953012,-201.571193,0.00017366,2]
[334612723,1723346953034,-155.797894,0.00017366,2]
[334612724,1723346953056,-155.7979,0.00017366,2]
[334612725,1723346953081,-26617.93456742,0.00017367,2]
[334612726,1723346953221,162.51129473,9.999e-05,2]
[334612727,1723346953834,-545.76885692,0.00015701,2]
[334612728,1723346953869,-545.76885692,0.00015701,2]
[334612729,1723346953892,-545.76885692,0.00015701,2]
[334612730,1723346953914,-545.76885692,0.00015701,2]
[334612731,1723346953936,-545.76885692,0.00015701,2]
[334612732,1723346953959,-545.76885692,0.00015701,2]
[334612733,1723346953981,-1092.45305445,0.00015708,2]
[334612734,1723346954002,-151.0,0.00015711,2]
[334612735,1723346954026,-151.0,0.00015711,2]
[334612736,1723346954046,-223.32245684,0.00015712,2]
[334612737,1723346954067,-534.3800288,0.00016309,2]
[334612738,1723346954091,-23763.42246326,0.00017367,2]
[334612739,1723346954251,-111540.49747832,0.00017367,2]
[334612740,1723346954274,-151.0,0.00017367,2]
[334612741,1723346954301,-151.0,0.00017367,2]
[334612742,1723346954326,-151.0,0.00017371,2]
[334612743,1723346954356,-151.0,0.00017371,2]
[334612744,1723346954378,-39084.06625612,0.00017377,2]
[334612745,1723346955057,162.51129473,9.899e-05,2]
[334612746,1723346957082,-154.77557542,0.00015712,2]
[334612747,1723346957106,-200.0,0.00016456,2]
[334612748,1723346957127,-20759.61598928,0.00017377,2]
[334612802,1723347034255,-302.9332497,0.00015528,2]
[334612804,1723347034265,-300.0,0.00016288,2]
[334612806,1723347034275,-115.19374356,0.00016289,2]
[334612808,1723347034288,-1669.69707867,0.00016289,2]
[334612811,1723347034299,-1628.1995202,0.00016289,2]
[334612813,1723347034311,-916.53086234,0.00016289,2]
[334612815,1723347034324,-262.29000004,0.00016289,2]
[334612817,1723347034336,-269.24912565,0.00016289,2]
[334613211,1723347038874,-310.410008,0.00016289,2]
[334613223,1723347039109,-19728.42966154,0.00016289,2]
[334613224,1723347039120,-13664.90764465,0.00016347,2]
[334613225,1723347039129,-1500.0,0.00016347,2]
[334613226,1723347039139,-200.0,0.00016456,2]
[334613227,1723347039149,-162.22090166,0.00016532,2]
[334613228,1723347039163,-244.7942,0.00017019,2]
[334613229,1723347039172,-279.09660448,0.00017366,2]
[334613230,1723347039181,-158.96708511,0.00017376,2]
[334613231,1723347039191,-500.0,0.00017376,2]
[334613232,1723347039200,-417.56231316,0.00017376,2]
[334613233,1723347039209,-500.0,0.00017376,2]
[334613234,1723347039219,-500.0,0.00017376,2]
[334613235,1723347039228,-221.45503387,0.00017376,2]
[334613236,1723347039239,-59456.44799582,0.00017377,2]
[334613237,1723347039251,-1050.82,0.00017377,2]
[334613238,1723347039264,-5836.36352528,0.00017377,2]
[334613239,1723347039274,-151.0,0.00017377,2]
[334613240,1723347039284,-227.970098,0.00017377,2]
[334613241,1723347039445,-151.0,0.00017381,2]
[334613242,1723347039454,-400.0,0.00017825,2]
[334613243,1723347039464,-343.03943595,0.0001784,2]
[334613244,1723347039475,-1384.13048712,0.0001784,2]
[334613245,1723347039486,-332.21200423,0.00017882,2]
[334613246,1723347039496,-420.0,0.00017917,2]
[334613247,1723347039506,-5236.61359711,0.00018,2]
[334613248,1723347039516,-1364.59246336,0.00018,2]
[334613249,1723347039526,-544.69407705,0.00018125,2]
[334613250,1723347039536,-335.347567,0.00018904,2]
[334613251,1723347039547,-1440.41754309,0.00018934,2]
[334613252,1723347039556,-201.7781748,0.00018999,2]
[334613253,1723347039566,-154.79103211,0.00018999,2]
[334613254,1723347039576,-522.80309354,0.00018999,2]
[334613255,1723347039585,-1942.31984959,0.00019,2]
[334613256,1723347039595,-250.0,0.00019041,2]
[334613257,1723347039606,-155.99420951,0.00019046,2]
[334613258,1723347039616,-200.0,0.00019175,2]
[334613259,1723347039627,-200.0,0.00019175,2]
[334613260,1723347039636,-404.08727484,0.00019177,2]
[334613261,1723347039646,-158.775381,0.00019178,2]
[334613262,1723347039660,-561.42018642,0.00019564,2]
[334613263,1723347039672,-449.50223741,0.00019564,2]
[334613264,1723347039681,-153.0,0.00019611,2]
[334613265,1723347039691,-153.0,0.00019611,2]
[334613266,1723347039701,-207.0,0.00019611,2]
[334613267,1723347039712,-207.0,0.00019611,2]
[334613268,1723347039722,-207.0,0.00019611,2]
[334613269,1723347039732,-207.0,0.00019611,2]
[334613270,1723347039743,-207.0,0.00019611,2]
[334613271,1723347039754,-207.0,0.00019611,2]
[334613272,1723347039764,-207.0,0.00019611,2]
[334613273,1723347039773,-207.0,0.00019611,2]
[334613274,1723347039784,-207.0,0.00019611,2]
[334613275,1723347039794,-207.0,0.00019611,2]
[334613276,1723347039805,-207.0,0.00019611,2]
[334613277,1723347039816,-207.0,0.00019611,2]
[334613278,1723347039826,-207.0,0.00019611,2]
[334613279,1723347039835,-153.0,0.00019611,2]
[334613280,1723347039845,-153.0,0.00019611,2]
[334613281,1723347039855,-153.0,0.00019611,2]
[334613282,1723347039865,-153.0,0.00019611,2]
[334613283,1723347039875,-153.0,0.00019611,2]
[334613284,1723347039884,-153.0,0.00019611,2]
[334613285,1723347039893,-153.0,0.00019611,2]